fUSD/lending_fUSD_20260525
["ID","MTS","AMOUNT","RATE_DAILY","PERIOD"]
[422959177,1779677441000,-500.0,0.00013699,2]
[422959180,1779677441000,-500.0,0.00013699,2]
[422959179,1779677441000,-500.0,0.00013699,2]
[422959152,1779677441000,-232.90080079,0.00013698,2]
[422959169,1779677441000,-500.0,0.00013699,2]
[422959157,1779677441000,-894.42,0.00013699,2]
[422959137,1779677441000,-748.37,0.00013698,2]
[422959156,1779677441000,-178.88,0.00013699,2]
[422959181,1779677441000,-500.0,0.00013699,2]
[422959124,1779677441000,-500.0,0.00013698,2]
[422959123,1779677441000,-500.0,0.00013698,2]
[422959125,1779677441000,-500.0,0.00013698,2]
[422959126,1779677441000,-500.0,0.00013698,2]
[422959128,1779677441000,-500.0,0.00013698,2]
[422959138,1779677441000,-748.37,0.00013698,2]
[422959129,1779677441000,-500.0,0.00013698,2]
[422959127,1779677441000,-500.0,0.00013698,2]
[422959131,1779677441000,-548.92896015,0.00013698,2]
[422959132,1779677441000,-748.37,0.00013698,2]
[422959134,1779677441000,-748.37,0.00013698,2]
[422959136,1779677441000,-748.37,0.00013698,2]
[422959130,1779677441000,-500.0,0.00013698,2]
[422959135,1779677441000,-748.37,0.00013698,2]
[422959133,1779677441000,-748.37,0.00013698,2]
[422959139,1779677441000,-748.37,0.00013698,2]
[422959140,1779677441000,-748.37,0.00013698,2]
[422959142,1779677441000,-748.37,0.00013698,2]
[422959141,1779677441000,-748.37,0.00013698,2]
[422959145,1779677441000,-500.0,0.00013698,2]
[422959143,1779677441000,-500.0,0.00013698,2]
[422959148,1779677441000,-618.5994779,0.00013698,2]
[422959146,1779677441000,-500.0,0.00013698,2]
[422959144,1779677441000,-748.37,0.00013698,2]
[422959147,1779677441000,-500.0,0.00013698,2]
[422959149,1779677441000,-500.0,0.00013698,2]
[422959158,1779677441000,-166.66,0.00013699,2]
[422959184,1779677441000,-500.0,0.00013699,2]
[422959150,1779677441000,-500.0,0.00013698,2]
[422959183,1779677441000,-500.0,0.00013699,2]
[422959215,1779677441000,-200.0,0.00013782,2]
[422959216,1779677441000,-150.0,0.00013787,2]
[422959218,1779677441000,-748.37,0.00013789,2]
[422959219,1779677441000,-22543.15085742,0.00013789,2]
[422959220,1779677441000,-150.0,0.00013813,2]
[422959222,1779677441000,-2866.81917232,0.00013837,2]
[422959221,1779677441000,-166.66,0.00013836,2]
[422959223,1779677441000,-150.0,0.00013846,2]
[422959225,1779677441000,-150.0,0.00013862,2]
[422959224,1779677441000,-165.41288204,0.00013853,2]
[422959226,1779677441000,-150.0,0.00013879,2]
[422959232,1779677441000,-564.09,0.00013921,2]
[422959227,1779677441000,-150.0,0.00013911,2]
[422959229,1779677441000,-339.16611451,0.00013921,2]
[422959228,1779677441000,-500.0,0.00013921,2]
[422959231,1779677441000,-500.0,0.00013921,2]
[422959233,1779677441000,-865.79,0.00013921,2]
[422959234,1779677441000,-22543.15085742,0.00013925,2]
[422959230,1779677441000,-548.79,0.00013921,2]
[422959235,1779677441000,-150.0,0.00013937,2]
[422959236,1779677441000,-150.0,0.00013937,2]
[422959237,1779677441000,-150.0,0.00013944,2]
[422959238,1779677441000,-166.66,0.00013973,2]
[422959239,1779677441000,-150.0,0.00013976,2]
[422959240,1779677441000,-198.7,0.00013985,2]
[422959243,1779677441000,-19383.46855849,0.0001399,2]
[422959182,1779677441000,-500.0,0.00013699,2]
[422959242,1779677441000,-500.0,0.00013989,2]
[422959214,1779677441000,-150.0,0.00013781,2]
[422959241,1779677441000,-150.0,0.00013987,2]
[422959213,1779677441000,-150.0,0.00013748,2]
[422959186,1779677441000,-500.0,0.00013699,2]
[422959185,1779677441000,-500.0,0.00013699,2]
[422959188,1779677441000,-500.0,0.00013699,2]
[422959187,1779677441000,-500.0,0.00013699,2]
[422959195,1779677441000,-500.0,0.00013699,2]
[422959189,1779677441000,-297.36518811,0.00013699,2]
[422959194,1779677441000,-500.0,0.00013699,2]
[422959196,1779677441000,-500.0,0.00013699,2]
[422959192,1779677441000,-500.0,0.00013699,2]
[422959190,1779677441000,-500.0,0.00013699,2]
[422959197,1779677441000,-500.0,0.00013699,2]
[422959193,1779677441000,-500.0,0.00013699,2]
[422959198,1779677441000,-500.0,0.00013699,2]
[422959191,1779677441000,-500.0,0.00013699,2]
[422959202,1779677441000,-500.0,0.00013699,2]
[422959212,1779677441000,-150.0,0.00013737,2]
[422959199,1779677441000,-500.0,0.00013699,2]
[422959208,1779677441000,-500.0,0.00013699,2]
[422959203,1779677441000,-500.0,0.00013699,2]
[422959206,1779677441000,-500.0,0.00013699,2]
[422959209,1779677441000,-3110.32965249,0.00013699,2]
[422959207,1779677441000,-500.0,0.00013699,2]
[422959217,1779677441000,-150.0,0.00013787,2]
[422959210,1779677441000,-1153.57,0.00013701,2]
[422959204,1779677441000,-500.0,0.00013699,2]
[422959211,1779677441000,-150.0,0.00013716,2]
[422959201,1779677441000,-476.28669302,0.00013699,2]
[422959200,1779677441000,-500.0,0.00013699,2]
[422959205,1779677441000,-500.0,0.00013699,2]
[422959300,1779677442000,-350.0,0.00014342,2]
[422959288,1779677442000,-150.0,0.00014237,2]
[422959285,1779677442000,-150.0,0.00014237,2]
[422959281,1779677442000,-150.0,0.00014237,2]
[422959298,1779677442000,-150.0,0.00014335,2]
[422959294,1779677442000,-150.0,0.00014302,2]
[422959283,1779677442000,-150.0,0.00014237,2]
[422959292,1779677442000,-150.0,0.0001427,2]
[422959279,1779677442000,-150.0,0.00014237,2]
[422959303,1779677442000,-150.0,0.00014367,2]
[422959296,1779677442000,-22543.15085742,0.00014332,2]
[422959290,1779677442000,-166.66,0.00014247,2]
[422959335,1779677442000,-150.0,0.0001453,2]
[422959307,1779677442000,-166.66,0.00014384,2]
[422959310,1779677442000,-150.0,0.00014387,2]
[422959313,1779677442000,-150.0,0.00014387,2]
[422959315,1779677442000,-150.0,0.000144,2]
[422959323,1779677442000,-22543.15085742,0.00014468,2]
[422959318,1779677442000,-150.0,0.00014432,2]
[422959316,1779677442000,-150.0,0.00014424,2]
[422959319,1779677442000,-832.0,0.00014452,2]
[422959322,1779677442000,-150.0,0.00014465,2]
[422959325,1779677442000,-150.0,0.00014487,2]
[422959327,1779677442000,-150.0,0.00014498,2]
[422959336,1779677442000,-150.0,0.00014537,2]
[422959277,1779677442000,-150.0,0.00014237,2]
[422959305,1779677442000,-2866.81917231,0.00014369,2]
[422959270,1779677442000,-589.09,0.00014222,2]
[422959258,1779677442000,-22543.15085742,0.00014196,2]
[422959273,1779677442000,-500.0,0.00014222,2]
[422959329,1779677442000,-1830.62,0.000145,2]
[422959247,1779677442000,-150.0,0.0001405,2]
[422959244,1779677442000,-505.26668046,0.0001399,2]
[422959246,1779677442000,-150.0,0.00014042,2]
[422959245,1779677442000,-150.0,0.00014009,2]
[422959248,1779677442000,-244.75057516,0.0001406,2]
[422959250,1779677442000,-150.0,0.00014074,2]
[422959251,1779677442000,-150.0,0.00014087,2]
[422959252,1779677442000,-150.0,0.00014087,2]
[422959249,1779677442000,-22543.15085742,0.00014061,2]
[422959260,1779677442000,-310.80400951,0.00014212,30]
[422959253,1779677442000,-186.3,0.00014094,2]
[422959268,1779677442000,-500.0,0.00014212,30]
[422959254,1779677442000,-150.0,0.00014107,2]
[422959255,1779677442000,-166.66,0.0001411,2]
[422959259,1779677442000,-150.0,0.00014204,2]
[422959256,1779677442000,-150.0,0.00014139,2]
[422959261,1779677442000,-500.0,0.00014212,30]
[422959262,1779677442000,-500.0,0.00014212,30]
[422959263,1779677442000,-500.0,0.00014212,30]
[422959265,1779677442000,-500.0,0.00014212,30]
[422959264,1779677442000,-500.0,0.00014212,30]
[422959266,1779677442000,-500.0,0.00014212,30]
[422959267,1779677442000,-500.0,0.00014212,30]
[422959275,1779677442000,-150.0,0.00014237,2]
[422959269,1779677442000,-272.91244993,0.00014212,30]
[422959257,1779677442000,-150.0,0.00014172,2]
[422959333,1779677442000,-171.54,0.00014517,2]
[422959331,1779677442000,-2593.951,0.00014517,2]
[422959343,1779677442000,-150.0,0.00014612,2]
[422959369,1779677442000,-589.09,0.00014693,2]
[422959373,1779677442000,-500.0,0.00014693,2]
[422959371,1779677442000,-500.0,0.00014693,2]
[422959372,1779677442000,-500.0,0.00014693,2]
[422959374,1779677442000,-500.0,0.00014693,2]
[422959375,1779677442000,-500.0,0.00014693,2]
[422959376,1779677442000,-500.0,0.00014693,2]
[422959379,1779677442000,-500.0,0.00014693,2]
[422959377,1779677442000,-500.0,0.00014693,2]
[422959378,1779677442000,-500.0,0.00014693,2]
[422959380,1779677442000,-500.0,0.00014693,2]
[422959381,1779677442000,-500.0,0.00014693,2]
[422959368,1779677442000,-589.09,0.00014693,2]
[422959382,1779677442000,-500.0,0.00014693,2]
[422959385,1779677442000,-500.0,0.00014693,2]
[422959384,1779677442000,-500.0,0.00014693,2]
[422959387,1779677442000,-500.0,0.00014693,2]
[422959390,1779677442000,-564.09,0.00014693,2]
[422959393,1779677442000,-564.09,0.00014693,2]
[422959392,1779677442000,-564.09,0.00014693,2]
[422959389,1779677442000,-564.09,0.00014693,2]
[422959388,1779677442000,-500.0,0.00014693,2]
[422959383,1779677442000,-500.0,0.00014693,2]
[422959391,1779677442000,-564.09,0.00014693,2]
[422959395,1779677442000,-564.09,0.00014693,2]
[422959337,1779677442000,-150.0,0.00014537,2]
[422959386,1779677442000,-500.0,0.00014693,2]
[422959365,1779677442000,-589.09,0.00014693,2]
[422959370,1779677442000,-500.0,0.00014693,2]
[422959367,1779677442000,-589.09,0.00014693,2]
[422959342,1779677442000,-22543.15085742,0.00014603,2]
[422959338,1779677442000,-529.0,0.00014554,2]
[422959394,1779677442000,-564.09,0.00014693,2]
[422959339,1779677442000,-150.0,0.00014563,2]
[422959341,1779677442000,-748.37,0.00014602,2]
[422959340,1779677442000,-150.0,0.00014595,2]
[422959344,1779677442000,-150.0,0.00014628,2]
[422959346,1779677442000,-823.0,0.00014668,2]
[422959356,1779677442000,-500.0,0.00014693,2]
[422959366,1779677442000,-589.09,0.00014693,2]
[422959348,1779677442000,-150.0,0.00014687,2]
[422959349,1779677442000,-150.0,0.00014687,2]
[422959347,1779677442000,-248.04560813,0.00014684,2]
[422959352,1779677442000,-500.0,0.00014693,2]
[422959345,1779677442000,-150.0,0.00014661,2]
[422959354,1779677442000,-500.0,0.00014693,2]
[422959364,1779677442000,-589.09,0.00014693,2]
[422959350,1779677442000,-500.0,0.00014693,2]
[422959361,1779677442000,-548.79,0.00014693,2]
[422959359,1779677442000,-548.79,0.00014693,2]
[422959363,1779677442000,-548.79,0.00014693,2]
[422959362,1779677442000,-548.79,0.00014693,2]
[422959358,1779677442000,-548.79,0.00014693,2]
[422959357,1779677442000,-548.79,0.00014693,2]
[422959353,1779677442000,-500.0,0.00014693,2]
[422959351,1779677442000,-500.0,0.00014693,2]
[422959360,1779677442000,-548.79,0.00014693,2]
[422959355,1779677442000,-500.0,0.00014693,2]
[422959410,1779677443000,-748.37,0.00014693,2]
[422959403,1779677443000,-748.37,0.00014693,2]
[422959402,1779677443000,-865.79,0.00014693,2]
[422959401,1779677443000,-865.79,0.00014693,2]
[422959398,1779677443000,-865.79,0.00014693,2]
[422959397,1779677443000,-865.79,0.00014693,2]
[422959399,1779677443000,-865.79,0.00014693,2]
[422959396,1779677443000,-865.79,0.00014693,2]
[422959406,1779677443000,-748.37,0.00014693,2]
[422959400,1779677443000,-865.79,0.00014693,2]
[422959407,1779677443000,-748.37,0.00014693,2]
[422959415,1779677443000,-787963.55774837,0.00014694,2]
[422959409,1779677443000,-748.37,0.00014693,2]
[422959423,1779677443000,-922.2937585,0.00013637,2]
[422959422,1779677443000,-1400.52537883,0.00013589,2]
[422959419,1779677443000,-832.0,0.00014452,2]
[422959420,1779677443000,-225.2863623,0.00014694,2]
[422959421,1779677443000,-827.18086267,0.00013589,2]
[422959413,1779677443000,-748.43,0.00014693,2]
[422959412,1779677443000,-748.37,0.00014693,2]
[422959405,1779677443000,-748.37,0.00014693,2]
[422959408,1779677443000,-748.37,0.00014693,2]
[422959414,1779677443000,-150.0,0.00014693,2]
[422959404,1779677443000,-748.37,0.00014693,2]
[422959432,1779677446000,-369.75142545,0.00013637,2]
[422959431,1779677446000,-804.35,0.00013637,2]
[422959430,1779677446000,-3471.71136763,0.00013637,2]
[422959429,1779677446000,-352.53995611,0.00013637,2]
[422959525,1779677537000,196.04,6.76e-05,2]
[422959527,1779677537000,196.04,7.472e-05,2]
[422959526,1779677537000,196.04,7.116e-05,2]
[422959529,1779677538000,196.04,8.184e-05,2]
[422959528,1779677538000,196.04,7.828e-05,2]
[422959536,1779678329000,161.45,5.72e-05,2]
[422959572,1779678632000,-500.0,0.00011644,2]
[422959568,1779678632000,-191.4554308,0.00011443,2]
[422959564,1779678632000,-7475.37,0.00011284,2]
[422959563,1779678632000,-17959.65,0.00011281,2]
[422959565,1779678632000,-196.04,0.00011386,2]
[422959567,1779678632000,-161.45,0.0001144,2]
[422959569,1779678632000,-15697.0,0.000115,2]
[422959570,1779678632000,-177.88848839,0.00011583,2]
[422959573,1779678632000,-274.86,0.00011658,2]
[422959574,1779678632000,-869.91,0.00011712,2]
[422959575,1779678632000,-196.04,0.00011742,2]
[422959577,1779678632000,-150.0,0.00011751,2]
[422959578,1779678632000,-167.0,0.00011808,2]
[422959582,1779678632000,-576.79,0.00012339,2]
[422959571,1779678632000,-529.0,0.00011602,2]
[422959566,1779678632000,-1000.0,0.00011406,2]
[422959558,1779678632000,-4914.38899826,0.00010582,2]
[422959561,1779678632000,-196.04,0.0001103,2]
[422959576,1779678632000,-1013.48,0.00011751,2]
[422959547,1779678632000,-196.04,8.539e-05,2]
[422959549,1779678632000,-196.04,8.895e-05,2]
[422959550,1779678632000,-196.04,9.251e-05,2]
[422959548,1779678632000,-350.61,8.717e-05,2]
[422959551,1779678632000,-215.38528485,9.287e-05,2]
[422959562,1779678632000,-1167.03,0.00011129,2]
[422959556,1779678632000,-1200.0,0.00010547,2]
[422959553,1779678632000,-196.04,9.963e-05,2]
[422959552,1779678632000,-196.04,9.607e-05,2]
[422959555,1779678632000,-3904.3892793,0.00010498,2]
[422959554,1779678632000,-196.04,0.00010318,2]
[422959559,1779678632000,-2470.0,0.00010615,2]
[422959560,1779678632000,-196.04,0.00010674,2]
[422959557,1779678632000,-4540.0,0.00010548,2]
[422959584,1779678632000,-1167.03,0.0001252,2]
[422959594,1779678632000,-150.0,0.00013389,2]
[422959581,1779678632000,-178.6,0.00012329,2]
[422959600,1779678632000,-150.5384922,0.00013389,2]
[422959611,1779678632000,-150.0,0.00013424,2]
[422959603,1779678632000,-150.0,0.00013389,2]
[422959609,1779678632000,-150.0,0.00013424,2]
[422959607,1779678632000,-150.0,0.00013424,2]
[422959605,1779678632000,-500.0,0.00013389,2]
[422959601,1779678632000,-150.0,0.00013389,2]
[422959612,1779678632000,-150.0,0.0001346,2]
[422959604,1779678632000,-150.0,0.00013389,2]
[422959610,1779678632000,-276.16960997,0.00013424,2]
[422959613,1779678632000,-150.0,0.00013495,2]
[422959614,1779678632000,-1532.93855455,0.00013508,2]
[422959615,1779678632000,-3922.37240693,0.00013508,2]
[422959585,1779678632000,-576.79,0.00012647,2]
[422959606,1779678632000,-2254.31508576,0.00013421,2]
[422959599,1779678632000,-150.0,0.00013389,2]
[422959608,1779678632000,-150.0,0.00013424,2]
[422959596,1779678632000,-150.0,0.00013389,2]
[422959579,1779678632000,-362.73,0.00011835,2]
[422959580,1779678632000,-196.04,0.00012097,2]
[422959586,1779678632000,-20394.39408781,0.00012776,2]
[422959583,1779678632000,-196.04,0.00012453,2]
[422959588,1779678632000,-255.0,0.0001282,2]
[422959595,1779678632000,-150.0,0.00013389,2]
[422959597,1779678632000,-150.0,0.00013389,2]
[422959587,1779678632000,-196.04,0.00012809,2]
[422959598,1779678632000,-152.13755173,0.00013389,2]
[422959590,1779678632000,-274.86,0.00013115,2]
[422959592,1779678632000,-576.79,0.00013264,2]
[422959591,1779678632000,-196.04,0.00013165,2]
[422959593,1779678632000,-4173.0173,0.00013289,2]
[422959616,1779678632000,-1587.51617371,0.00013508,2]
[422959589,1779678632000,-576.79,0.00012956,2]
[422959617,1779678633000,-514.62729366,0.00013508,2]
[422959619,1779678638000,-325.09476266,0.00013508,2]
[422959621,1779678638000,-12677.57875301,0.00013508,2]
[422959620,1779678638000,-5865.0,0.00013508,2]
[422959623,1779678638000,-668.03,0.00013508,2]
[422959624,1779678638000,-581.84768623,0.00013508,2]
[422959622,1779678638000,-353.21445168,0.00013508,2]
[422959854,1779678640000,-403.79331939,0.00013508,2]
[422959861,1779678640000,-3237.54315196,0.00013508,2]
[422959878,1779678640000,-9259.44839424,0.00013508,2]
[422959852,1779678640000,-684.905344,0.00013508,2]
[422959907,1779678640000,-8854.06807142,0.00013508,2]
[422959910,1779678640000,-8947.21879473,0.00013508,2]
[422959912,1779678640000,-8943.78386462,0.00013508,2]
[422959914,1779678640000,-9077.54866152,0.00013508,2]
[422959870,1779678640000,-1316.34810885,0.00013508,2]
[422959989,1779678643000,-728.90708654,0.00013508,2]
[422959988,1779678643000,-1366.2,0.00013508,2]
[422959986,1779678643000,-192.26,0.00013354,2]
[422959985,1779678643000,-192.26,0.00012718,2]
[422959987,1779678643000,-2468.96445354,0.00013508,2]
[422959993,1779678646000,-647.66508592,0.00013508,2]
[422959990,1779678646000,-7142.53836676,0.00013508,2]
[422959991,1779678646000,-679.58740174,0.00013508,2]
[422959995,1779678646000,-150.0,0.00013531,2]
[422959992,1779678646000,-1172.74751234,0.00013508,2]
[422959996,1779678646000,-150.0,0.00013554,2]
[422959998,1779678646000,-150.0,0.00013566,2]
[422959994,1779678646000,-196.04,0.00013521,2]
[422959999,1779678646000,-2254.31508574,0.00013567,2]
[422959997,1779678646000,-150.0,0.00013554,2]
[422960004,1779678647000,-449.1542424,0.00013608,2]
[422960003,1779678647000,-760.21692186,0.00013608,2]
[422960001,1779678647000,-150.0,0.00013602,2]
[422960002,1779678647000,-7383.7613773,0.00013608,2]
[422960000,1779678647000,-200.0,0.00013581,2]
[422960007,1779678652000,165.41288204,9e-05,3]
[422960211,1779679106000,159.73,6.173e-05,2]
[422960378,1779679425000,152.0,8.543e-05,7]
[422960436,1779679609000,152.0,8.54e-05,7]
[422960472,1779679832000,-250.0,9.953e-05,2]
[422960481,1779679832000,-300.0,0.00010699,2]
[422960474,1779679832000,-344.38847477,0.00010398,2]
[422960471,1779679832000,-159.73,9.259e-05,2]
[422960476,1779679832000,-709.62,0.00010648,2]
[422960478,1779679832000,-266.0,0.00010698,2]
[422960477,1779679832000,-6096.41820917,0.0001069,2]
[422960475,1779679832000,-191.10191603,0.00010647,2]
[422960480,1779679832000,-844.0,0.00010699,2]
[422960473,1779679832000,-250.0,0.00010185,2]
[422960482,1779679832000,-150.0,0.00010699,2]
[422960484,1779679832000,-84191.63112509,0.000107,2]
[422960483,1779679832000,-300.0,0.00010699,2]
[422960486,1779679832000,-12919.18535743,0.000107,2]
[422960485,1779679832000,-7743.29456258,0.000107,2]
[422960488,1779679832000,-648.73496734,0.000107,2]
[422960489,1779679832000,-1185.27555525,0.000107,2]
[422960490,1779679832000,-310.8,0.000107,2]
[422960491,1779679832000,-6263.32093304,0.000107,2]
[422960494,1779679832000,-313.00338255,0.000107,2]
[422960479,1779679832000,-1000.0,0.00010699,2]
[422960521,1779679838000,-500.0,0.00011615,2]
[422960522,1779679838000,-500.0,0.00011615,2]
[422960523,1779679838000,-500.0,0.00011615,2]
[422960528,1779679838000,-500.0,0.00011615,2]
[422960526,1779679838000,-500.0,0.00011615,2]
[422960541,1779679838000,-200.0,0.00011653,2]
[422960524,1779679838000,-500.0,0.00011615,2]
[422960529,1779679838000,-500.0,0.00011615,2]
[422960531,1779679838000,-500.0,0.00011615,2]
[422960520,1779679838000,-500.0,0.00011615,2]
[422960542,1779679838000,-503.80446207,0.00011716,2]
[422960532,1779679838000,-500.0,0.00011615,2]
[422960525,1779679838000,-500.0,0.00011615,2]
[422960527,1779679838000,-500.0,0.00011615,2]
[422960511,1779679838000,-3758.31499677,0.00011319,2]
[422960519,1779679838000,-500.0,0.00011615,2]
[422960530,1779679838000,-500.0,0.00011615,2]
[422960517,1779679838000,-500.0,0.00011615,2]
[422960515,1779679838000,-500.0,0.00011615,2]
[422960508,1779679838000,-1852.42,0.00011087,2]
[422960516,1779679838000,-500.0,0.00011615,2]
[422960509,1779679838000,-24046.95997323,0.00011099,2]
[422960510,1779679838000,-24046.95997318,0.0001112,2]
[422960513,1779679838000,-500.0,0.00011615,2]
[422960512,1779679838000,-24046.95997318,0.00011419,2]
[422960514,1779679838000,-500.0,0.00011615,2]
[422960506,1779679838000,-150.0,0.00010959,2]
[422960507,1779679838000,-164.91,0.00011081,2]
[422960505,1779679838000,-142296.54101666,0.000107,2]
[422960518,1779679838000,-500.0,0.00011615,2]
[422960534,1779679838000,-500.0,0.00011615,2]
[422960553,1779679838000,-24046.95997318,0.00012016,2]
[422960535,1779679838000,-500.0,0.00011615,2]
[422960539,1779679838000,-471.36773997,0.00011615,2]
[422960570,1779679838000,-251.7,0.00012395,2]
[422960563,1779679838000,-24046.95997318,0.00012314,2]
[422960561,1779679838000,-9999.99,0.00012087,2]
[422960560,1779679838000,-999.99,0.00012087,2]
[422960565,1779679838000,-3758.31499676,0.00012342,2]
[422960562,1779679838000,-6848.89823794,0.00012247,2]
[422960559,1779679838000,-16410.74,0.00012087,2]
[422960558,1779679838000,-2801.93,0.00012087,2]
[422960556,1779679838000,-299.99,0.00012087,2]
[422960567,1779679838000,-159.73,0.00012345,2]
[422960557,1779679838000,-150.99,0.00012087,2]
[422960554,1779679838000,-269.16,0.00012026,2]
[422960550,1779679838000,-18652.74,0.00011975,2]
[422960564,1779679838000,-269.16,0.00012319,2]
[422960551,1779679838000,-163.49,0.00011975,2]
[422960549,1779679838000,-3758.31499676,0.00011831,2]
[422960538,1779679838000,-500.0,0.00011615,2]
[422960540,1779679838000,-6848.89823798,0.00011616,2]
[422960533,1779679838000,-500.0,0.00011615,2]
[422960543,1779679838000,-24046.95997318,0.00011717,2]
[422960544,1779679838000,-269.16,0.00011732,2]
[422960536,1779679838000,-500.0,0.00011615,2]
[422960555,1779679838000,-6848.89823794,0.00012036,2]
[422960552,1779679838000,-1413.74,0.00012,2]
[422960545,1779679838000,-255.0,0.00011737,2]
[422960537,1779679838000,-500.0,0.00011615,2]
[422960548,1779679838000,-6848.89823794,0.00011826,2]
[422960546,1779679838000,-420.0,0.00011761,2]
[422960547,1779679838000,-199.0,0.00011826,2]
[422960657,1779679839000,-8049.4248154,0.00013019,2]
[422960676,1779679839000,-500.0,0.0001315,2]
[422960644,1779679839000,-500.0,0.00013018,2]
[422960662,1779679839000,-1782.7065618,0.00013019,2]
[422960642,1779679839000,-500.0,0.00013018,2]
[422960648,1779679839000,-239.64228357,0.00013018,2]
[422960646,1779679839000,-500.0,0.00013018,2]
[422960664,1779679839000,-2115.6781492,0.00013019,2]
[422960668,1779679839000,-6848.89823794,0.00013088,2]
[422960666,1779679839000,-200.42646137,0.00013019,2]
[422960672,1779679839000,-500.0,0.0001315,2]
[422960659,1779679839000,-713398.1925246,0.00013019,2]
[422960684,1779679839000,-150.0,0.00013167,2]
[422960674,1779679839000,-500.0,0.0001315,2]
[422960682,1779679839000,-150.0,0.00013167,2]
[422960678,1779679839000,-420.84701242,0.0001315,2]
[422960670,1779679839000,-500.0,0.0001315,2]
[422960686,1779679839000,-218.68866841,0.00013167,2]
[422960688,1779679839000,-150.0,0.00013167,2]
[422960692,1779679839000,-150.0,0.00013167,2]
[422960694,1779679839000,-150.0,0.00013167,2]
[422960702,1779679839000,-24046.95997318,0.0001321,2]
[422960708,1779679839000,-150.0,0.00013248,2]
[422960704,1779679839000,-150.0,0.00013219,2]
[422960655,1779679839000,-500.0,0.00013018,3]
[422960680,1779679839000,-150.0,0.00013167,2]
[422960651,1779679839000,-322.75718565,0.00013018,2]
[422960610,1779679839000,-22211.13,0.0001288,2]
[422960637,1779679839000,-154.59284269,0.00013018,2]
[422960572,1779679839000,-6848.89823794,0.00012457,2]
[422960583,1779679839000,-24046.95997318,0.00012613,2]
[422960585,1779679839000,-6848.89823794,0.00012667,2]
[422960588,1779679839000,-180.8,0.00012708,2]
[422960574,1779679839000,-164.91,0.00012466,2]
[422960581,1779679839000,-269.16,0.00012612,2]
[422960576,1779679839000,-166.72,0.00012502,2]
[422960578,1779679839000,-186.3,0.00012597,2]
[422960604,1779679839000,-3758.31499676,0.00012854,2]
[422960606,1779679839000,-433.0,0.00012871,2]
[422960601,1779679839000,-700.94893261,0.00012796,2]
[422960698,1779679839000,-150.0,0.00013184,2]
[422960653,1779679839000,-500.0,0.00013018,2]
[422960608,1779679839000,-6848.89823794,0.00012877,2]
[422960613,1779679839000,-22211.13,0.0001288,2]
[422960614,1779679839000,-502.0,0.00012904,2]
[422960617,1779679839000,-269.16,0.00012906,2]
[422960626,1779679839000,-19922.04075653,0.00013,5]
[422960621,1779679839000,-3450.3253,0.00012919,2]
[422960623,1779679839000,-587.0,0.00012928,2]
[422960632,1779679839000,-165.36373875,0.00013009,2]
[422960619,1779679839000,-24046.95997318,0.00012911,2]
[422960628,1779679839000,-1732.32004172,0.00013,15]
[422960630,1779679839000,-151.0,0.00013006,2]
[422960635,1779679839000,-151.0,0.00013016,2]
[422960639,1779679839000,-500.0,0.00013018,2]
[422960599,1779679839000,-764.79,0.00012757,2]